bitfinex-derivatives/quotes_ETHF0:USTF0_20250205
["timestamp","ask_amount","ask_price","bid_price","bid_amount"]
[1738754695293,3.2078,2801.8,2800.7,3.2078]
[1738754699799,3.2078,2801.2,2800.7,3.2078]
[1738754700389,40.8,2801.1,2800.7,3.2078]
[1738754700593,42.045,2801.1,2800.7,3.2078]
[1738754700999,42.045,2801.1,2800.6,0.00534817]
[1738754701202,3.2078,2800.9,2800.6,0.00534817]
[1738754701699,1.3114,2800.8,2800.6,0.00534817]
[1738754703494,3.20245183,2800.5,2799.9,1.2569]
[1738754703799,3.2078,2800.0,2798.7,3.2078]
[1738754703996,3.2078,2799.2,2798.7,3.2078]
[1738754704699,3.213158,2799.2,2798.7,0.005358]
[1738754706104,3.405958,2799.2,2798.7,0.005358]
[1738754709302,0.198158,2799.2,2799.0,3.2078]
[1738754709800,3.2078,2800.2,2799.1,7.67473823]
[1738754709999,3.2078,2800.2,2799.5,2.99697887]
[1738754710207,3.2078,2800.2,2799.2,2.99697887]
[1738754710601,3.2078,2800.2,2799.2,7.63908634]
[1738754711207,0.005358,2800.0,2799.4,0.005358]
[1738754712111,0.005358,2800.0,2799.5,4.63238481]
[1738754715509,0.005358,2800.0,2799.6,3.2078]
[1738754715805,0.005358,2800.0,2799.7,4.73041773]
[1738754716210,0.005358,2800.0,2799.6,3.2078]
[1738754717209,3.2078,2800.2,2799.6,6.20477887]
[1738754717414,1.2562,2800.8,2800.1,3.2078]
[1738754718405,0.005358,2800.7,2800.2,7.5610237]
[1738754718605,0.005358,2800.7,2800.6,2.99697887]
[1738754719706,0.005358,2800.7,2800.5,3.2078]
[1738754720813,0.005358,2800.7,2800.0,4.28617887]
[1738754721116,3.2078,2800.6,2799.9,3.2078]
[1738754721610,4.5561,2800.6,2799.9,3.2078]
[1738754722210,5.8671,2800.6,2799.9,3.2078]
[1738754723312,3.2078,2800.6,2800.0,7.70134795]
[1738754723709,0.005358,2800.7,2800.0,4.70436908]
[1738754723911,0.005358,2800.7,2799.0,3.2078]
[1738754723912,3.2078,2800.1,2799.0,3.2078]
[1738754724217,3.2078,2799.7,2798.7,5.7662]
[1738754725007,3.2078,2799.7,2799.1,3.2078]
[1738754727613,0.005358,2800.7,2799.6,2.99697887]
[1738754727817,0.005358,2800.7,2800.0,3.2078]
[1738754728014,3.213158,2800.7,2799.6,5.49017887]
[1738754728217,3.2078,2800.4,2799.5,3.2078]
[1738754728713,3.2078,2800.4,2799.4,0.005358]
[1738754729113,3.2078,2800.4,2799.6,3.2078]
[1738754729312,3.2078,2800.4,2799.4,0.005358]
[1738754729612,3.2078,2800.4,2799.7,3.2078]
[1738754731114,0.005358,2800.7,2799.8,7.06881829]
[1738754732320,0.005358,2800.7,2800.0,3.2078]
[1738754733415,0.005358,2800.7,2799.6,3.46185815]
[1738754733416,4.430058,2800.7,2799.6,3.46185815]
[1738754733718,4.430058,2800.7,2799.8,3.2078]
[1738754734515,3.2078,2800.3,2799.4,0.005358]
[1738754734909,3.2078,2800.3,2799.7,3.2078]
[1738754735112,3.2078,2800.3,2799.8,3.2078]
[1738754736214,1.222258,2800.7,2799.6,3.46185815]
[1738754736215,4.430058,2800.7,2799.6,3.46185815]
[1738754736624,4.430058,2800.7,2799.7,4.58359945]
[1738754738622,4.430058,2800.7,2799.8,3.2078]
[1738754739621,4.430058,2800.7,2799.4,0.005358]
[1738754739622,3.2078,2800.4,2799.5,3.2078]
[1738754740418,3.2078,2800.4,2799.4,0.005358]
[1738754740419,3.2078,2800.4,2799.8,3.2078]
[1738754740616,3.2078,2800.4,2799.5,3.2078]
[1738754740817,3.2078,2800.4,2799.8,3.2078]
[1738754742415,1.222258,2800.7,2799.5,3.2078]
[1738754742416,3.2078,2800.1,2799.5,3.2078]
[1738754742824,1.3282,2800.0,2799.5,3.2078]
[1738754743326,2.6259,2800.0,2799.5,3.2078]
[1738754745421,3.2078,2800.1,2799.5,3.2078]
[1738754746524,3.2078,2800.5,2799.8,3.2078]
[1738754748920,3.2078,2799.9,2799.4,0.005358]
[1738754750424,1.281,2799.8,2799.4,0.005358]
[1738754750623,2.6264,2799.8,2799.4,0.005358]
[1738754751632,3.2078,2799.6,2799.4,0.005358]
[1738754753230,3.2078,2799.6,2798.7,3.2078]
[1738754753432,3.2078,2799.3,2798.4,3.2078]
[1738754754525,0.005358,2799.1,2798.6,0.005358]
[1738754757535,0.005358,2799.1,2798.9,3.01546785]
[1738754757742,3.2078,2800.2,2799.5,0.71414]
[1738754757939,3.2078,2800.2,2799.5,3.01546785]
[1738754758137,3.2078,2799.9,2799.2,4.30186785]
[1738754758435,3.2078,2800.2,2799.2,4.30186785]
[1738754758633,3.2078,2799.9,2799.2,4.30186785]
[1738754758827,3.2078,2800.2,2799.2,4.30186785]
[1738754759032,0.005358,2799.8,2799.5,3.01546785]
[1738754759643,0.005358,2799.8,2799.4,3.2078]
[1738754760038,0.005358,2799.8,2799.5,4.58814302]
[1738754762746,0.005358,2799.8,2799.4,3.2078]
[1738754763749,3.2078,2799.6,2798.9,3.2078]
[1738754763951,0.005358,2799.8,2798.6,4.531258]
[1738754763952,3.2078,2799.1,2798.6,4.531258]
[1738754764943,3.2078,2799.1,2798.6,3.213158]
[1738754765747,3.2078,2799.1,2798.6,0.005358]
[1738754766046,3.2078,2798.8,2798.6,0.005358]
[1738754770242,2.663,2798.7,2798.6,0.005358]
[1738754776243,8.37736,2798.7,2796.9,3.2078]
[1738754776444,3.01546785,2797.8,2796.7,2.4881]
[1738754776643,3.2078,2797.5,2796.7,7.20258586]
[1738754776849,3.2078,2797.5,2796.7,2.4881]
[1738754777052,40.8,2797.6,2796.7,2.4881]
[1738754777252,0.005358,2797.4,2796.9,0.005358]
[1738754780249,0.005358,2797.4,2797.0,4.54806548]
[1738754785762,0.005358,2797.4,2796.9,3.213158]
[1738754786464,3.2078,2797.3,2796.9,0.005358]
[1738754787167,1.3136,2797.2,2796.9,0.005358]
[1738754787563,3.2078,2797.3,2796.9,0.005358]
[1738754788666,3.2078,2797.3,2797.0,4.74970988]
[1738754788863,3.2078,2797.3,2797.0,7.38470988]
[1738754789980,0.005358,2797.4,2797.0,7.38470988]
[1738754790574,0.005358,2797.4,2797.0,2.635]
[1738754792064,0.005358,2797.4,2797.1,4.6793685]
[1738754792479,0.005358,2797.4,2797.0,2.635]
[1738754798076,0.005358,2797.4,2797.1,4.54779537]
[1738754799169,5.36433656,2827.2,2797.1,4.54779537]
[1738754799170,1.3134,2798.7,2797.9,0.71455]
[1738754799376,3.2078,2798.8,2797.9,5.61918275]
[1738754799572,3.2078,2798.5,2798.0,2.4667]
[1738754799871,44.0078,2798.8,2798.0,2.4667]
[1738754800074,3.2078,2798.8,2798.0,2.4667]
[1738754800271,0.005358,2798.7,2798.1,0.005358]
[1738754800667,3.2078,2798.5,2798.1,0.005358]
[1738754801076,1.2753,2798.4,2798.1,0.005358]
[1738754802175,3.2078,2798.2,2798.1,0.005358]
[1738754802985,3.2078,2798.2,2797.2,3.2078]
[1738754802986,49.0078,2798.2,2797.2,3.2078]
[1738754803175,3.2078,2797.9,2797.2,3.2078]
[1738754803478,3.2078,2798.2,2797.3,4.59242318]
[1738754803870,3.2078,2798.2,2797.5,0.005358]
[1738754808183,3.2078,2797.9,2797.5,0.005358]
[1738754810781,3.2078,2797.6,2797.5,0.005358]
[1738754812185,3.2078,2797.9,2797.5,0.005358]
[1738754820981,3.2078,2797.9,2797.6,4.57180685]
[1738754824389,3.2078,2797.9,2797.5,0.005358]
[1738754824590,3.2078,2797.6,2797.5,0.005358]
[1738754824888,5.61864301,2797.6,2796.6,1.25313994]
[1738754825081,3.2078,2796.7,2796.2,1.25313994]
[1738754825283,3.2078,2796.4,2796.1,2.5952]
[1738754826186,3.2078,2796.4,2796.0,0.005358]
[1738754826394,3.2078,2796.4,2796.2,4.72090325]
[1738754826585,3.2078,2796.4,2796.0,0.005358]
[1738754827496,3.2078,2796.4,2796.1,4.72954859]
[1738754827890,3.2078,2796.4,2796.0,0.005358]
[1738754828197,5.7348,2796.4,2796.0,0.005358]
[1738754828392,3.2078,2796.1,2796.0,0.005358]
[1738754828784,3.2078,2796.1,2795.3,3.2078]
[1738754828990,3.2078,2795.5,2794.8,1.272]
[1738754829187,5.61864301,2795.2,2794.4,1.2307]
[1738754829492,3.2078,2795.0,2794.2,8.06972175]
[1738754829791,3.2078,2795.0,2794.4,4.70235106]
[1738754830091,3.2078,2795.0,2794.3,5.61864301]
[1738754830092,0.005358,2794.9,2794.3,5.61864301]
[1738754830393,0.005358,2794.9,2794.6,3.2078]
[1738754830794,0.005358,2794.9,2794.7,7.16641854]
[1738754831196,0.005358,2794.9,2794.7,4.70331854]
[1738754831585,0.005358,2794.9,2794.6,4.75065875]
[1738754831790,0.005358,2794.9,2794.3,4.4293]
[1738754832292,0.005358,2794.9,2794.4,4.75065875]
[1738754832493,0.005358,2794.9,2794.5,3.02646597]
[1738754832895,0.005358,2794.9,2794.6,4.58873919]
[1738754833294,0.005358,2794.9,2794.8,3.02646597]
[1738754833690,0.005358,2794.9,2794.8,12.74162287]
[1738754834296,0.005358,2794.9,2794.8,4.7151569]
[1738754835500,0.005358,2794.9,2794.8,12.74162287]
[1738754837599,0.005358,2794.9,2794.8,7.74162287]
[1738754838000,0.005358,2794.9,2794.8,12.74162287]
[1738754839602,0.005358,2794.9,2794.8,7.74162287]
[1738754840007,0.005358,2794.9,2794.8,12.74162287]
[1738754840411,1.3272,2796.0,2794.9,0.71532]
[1738754840702,1.3272,2796.0,2795.4,6.23426597]
[1738754841107,1.3272,2796.0,2795.5,4.56475896]
[1738754841501,1.332558,2796.0,2795.5,4.57011696]
[1738754843400,4.540358,2796.0,2795.5,4.57011696]
[1738754845705,4.540358,2796.0,2795.5,0.005358]
[1738754846108,3.2078,2795.7,2795.5,0.005358]
[1738754846315,1.3477,2795.6,2795.5,0.005358]
[1738754847407,2.6982,2795.6,2795.5,0.005358]
[1738754848215,7.6982,2795.6,2794.2,6.23426597]
[1738754848413,3.20208701,2795.1,2794.5,3.2078]
[1738754848613,3.20208701,2795.1,2794.6,4.57638986]
[1738754848806,3.20208701,2795.1,2794.5,10.81065583]
[1738754849110,3.20208701,2795.1,2794.6,4.57638986]
[1738754849111,1.2815,2795.0,2794.6,4.57638986]
[1738754849713,3.2078,2795.4,2794.8,6.23426597]
[1738754850320,3.2078,2795.4,2794.9,4.62992323]
[1738754850707,3.2078,2795.4,2794.9,7.0446675]
[1738754851414,1.3477,2795.6,2795.2,2.41474427]
[1738754851818,1.3477,2795.6,2795.3,4.70531416]
[1738754852320,1.3477,2795.6,2795.2,2.41474427]
[1738754853016,3.2078,2795.3,2794.6,5.62254427]
[1738754853218,2.5865,2795.2,2794.6,2.41474427]
[1738754855314,2.5865,2795.2,2794.3,3.66788421]
[1738754855718,2.5865,2795.2,2794.3,7.03564579]
[1738754856014,3.2078,2795.0,2794.3,8.28878573]
[1738754856218,1.3335,2794.9,2794.3,8.28878573]
[1738754856722,1.3335,2794.9,2794.4,1.25313994]
[1738754857111,1.3335,2794.9,2794.5,4.60781273]
[1738754857517,1.3335,2794.9,2794.4,5.86095267]
[1738754857721,1.3335,2794.9,2794.4,1.25313994]
[1738754858114,1.3335,2794.9,2794.5,4.68288914]
[1738754858314,1.3335,2794.9,2794.5,5.93602908]
[1738754858616,1.3335,2794.9,2794.5,4.68288914]
[1738754858915,1.3335,2794.9,2794.5,5.93602908]
[1738754859115,1.3335,2794.9,2794.5,4.68288914]
[1738754859321,1.3335,2794.9,2794.5,1.25313994]
[1738754859516,1.3335,2794.9,2794.6,4.61523305]
[1738754859718,3.2078,2795.0,2794.6,8.28311726]
[1738754859927,3.2078,2795.0,2794.9,2.41474427]
[1738754860922,3.2078,2795.0,2794.9,3.66788421]
[1738754861216,3.2078,2795.0,2794.9,2.41474427]
[1738754861517,3.2078,2795.0,2794.9,8.28451108]
[1738754861717,3.2078,2795.0,2794.9,7.03137114]
[1738754861913,3.2078,2795.0,2794.9,8.28451108]
[1738754862119,3.2078,2795.0,2794.9,7.03137114]
[1738754862322,3.2078,2795.0,2794.9,8.28451108]
[1738754862523,3.2078,2795.0,2794.9,7.03137114]
[1738754862826,3.2078,2795.0,2794.9,8.28451108]
[1738754863127,3.2078,2795.0,2794.9,7.03137114]
[1738754863313,3.2078,2795.0,2794.9,8.28451108]
[1738754863624,3.2078,2795.0,2794.9,7.03137114]
[1738754863924,3.2078,2795.0,2794.9,8.28451108]
[1738754864123,3.2078,2795.0,2794.9,7.03137114]
[1738754864325,3.2078,2795.0,2794.9,8.28451108]
[1738754864624,1.3509,2795.6,2794.9,10.23917114]
[1738754864922,1.3509,2795.6,2795.0,1.25313994]
[1738754865325,1.3509,2795.6,2795.1,4.73964932]
[1738754869329,1.3509,2795.6,2795.2,2.41474427]
[1738754869632,1.3033,2795.7,2795.5,2.41474427]
[1738754869823,3.2078,2795.8,2795.5,2.41474427]
[1738754870225,0.005358,2796.0,2795.5,2.41474427]
[1738754870626,0.005358,2796.0,2795.4,1.3295]
[1738754871523,0.005358,2796.0,2795.7,3.2078]
[1738754871723,0.005358,2796.0,2795.9,2.41474427]
[1738754872318,0.005358,2796.0,2795.7,3.2078]
[1738754872518,0.005358,2796.0,2795.6,2.41474427]
[1738754872730,3.213158,2796.0,2795.8,4.57759827]
[1738754872925,3.213158,2796.0,2795.1,3.2078]
[1738754873134,3.2078,2795.7,2795.1,3.2078]
[1738754873329,2.4782,2795.6,2795.1,3.2078]
[1738754873933,3.7948,2795.6,2795.1,3.2078]
[1738754876027,2.4782,2795.6,2795.1,3.2078]
[1738754876334,1.2479,2795.6,2795.3,2.41474427]
[1738754877421,3.2078,2795.7,2795.3,2.41474427]
[1738754877624,0.005358,2796.0,2795.3,2.41474427]
[1738754877625,4.450258,2796.0,2795.4,4.63900618]
[1738754879226,4.450258,2796.0,2795.1,4.5094]
[1738754879227,3.2078,2795.7,2795.1,4.5094]
[1738754880535,3.2078,2795.7,2795.1,5.76253994]
[1738754880744,3.2078,2795.7,2795.1,4.46093994]
[1738754880932,3.2078,2795.7,2795.1,3.2078]
[1738754882026,3.2078,2795.7,2795.2,4.72824514]
[1738754882233,3.2078,2795.7,2795.1,3.2078]
[1738754885035,3.2078,2795.3,2794.8,1.25313994]
[1738754885237,3.2078,2795.3,2794.9,1.25313994]
[1738754885537,3.2078,2795.0,2794.0,1.2520061]
[1738754885735,3.2078,2795.0,2793.8,1.56409597]
[1738754885736,3.2078,2794.1,2793.8,1.56409597]
[1738754885940,3.2078,2794.5,2793.8,2.41474427]
[1738754886141,3.21316769,2794.2,2794.1,4.70253764]
[1738754886336,3.21316769,2794.2,2793.6,0.01382]
[1738754888849,1.3188,2794.1,2793.6,0.01382]
[1738754890050,3.2078,2793.9,2793.6,0.01382]
[1738754893650,3.2078,2793.9,2793.7,4.74961018]
[1738754894541,3.2078,2793.9,2793.6,1.2849]
[1738754896552,0.00536769,2794.2,2793.8,2.41474427]
[1738754897053,0.00536769,2794.2,2793.9,4.65596413]
[1738754898053,0.00536769,2794.2,2793.5,5.62254427]
[1738754898548,0.00536769,2794.2,2793.6,4.70737543]
[1738754900547,0.00536769,2794.2,2793.7,1.3011]
[1738754900847,0.00536769,2794.2,2793.8,4.55242937]
[1738754901052,0.00536769,2794.2,2793.8,8.24207364]
[1738754901841,0.00536769,2794.2,2793.8,4.55242937]
[1738754902152,1.24736769,2794.2,2793.5,5.62254427]
[1738754902547,1.24736769,2794.2,2793.6,4.74263708]
[1738754904045,0.00536769,2794.2,2793.6,4.74263708]
[1738754904245,0.00536769,2794.2,2794.1,5.62254427]
[1738754904646,0.00536769,2794.2,2794.1,10.28365217]
[1738754905042,1.2241,2795.1,2794.1,15.28365217]
[1738754905249,1.2241,2795.1,2794.5,2.41474427]
[1738754905749,1.2241,2795.1,2794.2,2.41474427]
[1738754906052,1.2241,2795.1,2794.2,6.99273708]
[1738754906252,0.00536769,2794.9,2794.4,0.00536769]
[1738754910755,0.00536769,2794.9,2794.5,2.41474427]
[1738754910961,0.00536769,2794.9,2794.6,4.4718]
[1738754911254,0.00536769,2794.9,2794.7,1.3448]
[1738754911451,0.00536769,2794.9,2794.7,6.0011861]
[1738754912560,0.00536769,2794.9,2794.4,0.00536769]
[1738754912753,5.62254427,2794.5,2793.2,4.77189597]
[1738754913055,5.00536769,2794.9,2793.2,4.77189597]
[1738754913056,3.2078,2793.8,2793.2,1.56409597]
[1738754913258,2.5348,2793.7,2793.2,1.56409597]
[1738754913459,2.5348,2793.7,2792.9,3.2078]
[1738754913761,2.5348,2793.7,2793.2,0.01404]
[1738754917861,3.2078,2793.5,2793.2,0.01404]
[1738754924162,2.41474427,2793.3,2793.2,0.01404]
[1738754925873,3.2078,2793.5,2793.2,0.01404]
[1738754926364,3.2078,2793.5,2792.8,2.41474427]
[1738754926566,3.2078,2793.6,2792.9,1.2219]
[1738754926767,0.00536769,2793.4,2792.9,10.32507702]
[1738754927863,0.00536769,2793.4,2792.9,1.2219]
[1738754928068,3.2078,2793.3,2792.9,1.2219]
[1738754928664,3.2078,2793.3,2792.6,4.5383]
[1738754930475,3.2078,2793.3,2792.7,4.58756191]
[1738754932876,3.2078,2793.3,2792.8,2.41474427]
[1738754933379,3.2078,2793.3,2792.9,4.59093381]
[1738754933581,3.2078,2793.3,2793.0,1.2796]
[1738754933982,3.2078,2793.3,2793.1,4.58274857]
[1738754934478,3.2078,2793.3,2793.0,1.2796]
[1738754935276,0.00536769,2793.4,2793.0,1.2796]
[1738754937975,3.2078,2793.3,2792.9,3.2078]
[1738754938781,3.2078,2793.0,2792.6,2.571]
[1738754939188,3.2078,2793.0,2792.2,2.41474427]
[1738754939481,2.5931,2792.9,2792.3,4.66860688]
[1738754939977,2.5931,2792.9,2792.2,1.3205]
[1738754939978,3.8645,2792.9,2792.2,1.3205]
[1738754940885,3.2078,2792.6,2792.2,1.3205]
[1738754942883,3.8645,2792.9,2792.0,3.22333]
[1738754942884,3.2078,2792.3,2792.0,0.01553]
[1738754943085,2.488,2792.2,2792.0,0.01553]
[1738754944877,3.2078,2792.3,2792.0,0.01553]
[1738754945179,3.2078,2792.6,2792.2,2.41474427]
[1738754945371,3.2078,2792.6,2792.3,2.5656]
[1738754945574,3.2078,2792.6,2792.3,7.26488971]
[1738754946780,1.3134,2793.2,2792.3,9.67963398]
[1738754946974,4.90274427,2793.3,2792.3,9.67963398]
[1738754946975,3.2078,2793.1,2792.4,3.2078]
[1738754947178,3.2078,2793.1,2792.6,2.41474427]
[1738754947681,3.2078,2793.1,2792.7,4.75355922]
[1738754947988,3.21316769,2793.4,2792.8,3.2078]
[1738754948483,3.21316769,2793.4,2792.9,5.79350736]
[1738754950488,3.21316769,2793.4,2792.3,1.3233]
[1738754950489,3.2078,2793.1,2792.3,6.94584427]
[1738754950682,2.5002,2793.0,2792.2,3.2078]
[1738754950877,3.2078,2792.8,2792.4,4.71853945]
[1738754951178,3.2078,2792.8,2792.2,3.2078]
[1738754951388,3.2078,2792.8,2792.0,2.43027427]
[1738754951780,3.2078,2792.8,2792.1,4.64365084]
[1738754952787,3.2078,2792.5,2792.0,0.01553]
[1738754953181,3.2078,2792.2,2792.0,0.01553]
[1738754953381,1.2663,2792.1,2791.5,1.2342]
[1738754953781,1.2663,2792.1,2791.6,4.68376967]
[1738754954383,3.2078,2792.2,2791.7,2.41474427]
[1738754954784,3.2078,2792.2,2791.8,4.75318731]
[1738754955787,3.2078,2792.2,2791.9,1.2658]
[1738754956090,3.2078,2792.2,2791.7,2.41474427]
[1738754956288,3.2078,2792.2,2791.7,1.2239]
[1738754959386,3.2078,2792.2,2791.8,4.60886109]
[1738754961488,3.2078,2792.2,2791.7,1.2239]
[1738754966095,3.2078,2792.2,2791.8,4.62732418]
[1738754968997,3.2078,2792.2,2791.7,1.2239]
[1738754970096,3.2078,2791.9,2791.3,3.2078]
[1738754970294,2.5543,2791.8,2791.3,3.2078]
[1738754970495,3.2078,2791.6,2790.8,0.01644]
[1738754971301,2.41474427,2791.5,2790.8,0.01644]
[1738754971703,43.21474427,2791.5,2790.8,0.01644]
[1738754972199,3.2078,2791.3,2790.8,0.01644]
[1738754972795,1.2694,2791.2,2790.8,0.01644]
[1738754973004,1.2849,2791.1,2790.8,0.01644]
[1738754973695,2.5505,2791.1,2790.8,0.01644]
[1738754977003,1.2849,2791.1,2790.8,0.01644]
[1738754978201,4.5388,2791.6,2790.9,4.74304368]
[1738754978501,3.2078,2791.6,2791.1,2.41474427]
[1738754978704,3.2078,2791.6,2791.4,2.41474427]
[1738754979008,3.2078,2791.6,2791.5,1.3093]
[1738754979499,3.2078,2791.6,2791.1,2.41474427]
[1738754979702,3.2078,2791.6,2791.0,4.4733]
[1738754979906,0.00536769,2791.8,2791.0,1.2655]
[1738754979907,3.2078,2791.3,2791.0,1.2655]
[1738754980104,3.2078,2791.3,2790.8,1.28844]
[1738754980303,3.2078,2791.3,2790.8,2.6234]
[1738754980503,3.2078,2791.3,2790.9,4.63914369]
[1738754981501,2.56,2791.7,2791.1,2.41474427]
[1738754981502,3.2078,2791.6,2791.1,2.41474427]
[1738754981716,3.2078,2791.6,2791.2,1.2702]
[1738754982018,3.2078,2791.6,2791.2,5.83633693]
[1738754986917,0.00536769,2791.8,2791.3,3.2078]
[1738754987109,0.00536769,2791.8,2791.3,4.5242]
[1738754987317,0.00536769,2791.8,2791.4,4.63891361]
[1738754987722,0.00536769,2791.8,2791.3,1.3164]
[1738754988118,0.00536769,2791.8,2791.4,4.62783422]
[1738754990020,0.00536769,2791.8,2791.0,3.2078]
[1738754990426,0.00536769,2791.8,2791.1,4.63602626]
[1738754991631,40.8,2791.7,2791.1,4.63602626]
[1738754992223,40.8,2791.7,2790.4,3.2078]
[1738754992224,3.2078,2791.4,2790.4,3.2078]
[1738754992530,3.2078,2791.1,2790.5,1.2418]
[1738754992730,1.3292,2791.0,2790.5,1.2418]
[1738754996429,3.2078,2791.1,2790.5,1.2418]
[1738754996822,3.2078,2791.1,2790.6,4.71760612]
[1738754997728,3.2078,2791.1,2790.5,1.2418]
[1738754998530,3.2078,2791.1,2790.6,4.62256256]
[1738755000234,3.2078,2791.1,2790.6,5.96406256]
[1738755000933,2.5907,2791.3,2790.6,5.96406256]
[1738755001124,2.5907,2791.3,2790.7,3.2078]
[1738755001531,2.5907,2791.3,2790.8,4.57204079]
[1738755001730,2.5907,2791.3,2790.7,3.2078]
[1738755002130,3.2078,2791.1,2790.5,1.2418]
[1738755003533,3.2078,2791.1,2790.7,3.2078]
[1738755004135,3.2078,2791.1,2790.8,4.68586714]
[1738755005438,3.2078,2791.1,2790.6,3.69414427]
[1738755005828,3.2078,2791.7,2791.0,3.2078]
[1738755006032,3.2078,2791.7,2791.2,2.41474427]
[1738755006226,4.4982,2791.7,2791.1,4.58587212]
[1738755006537,4.4982,2791.7,2791.3,4.58587212]
[1738755006733,4.4982,2791.7,2791.2,4.58587212]
[1738755007232,4.4982,2791.7,2791.0,0.00407439]
[1738755007233,3.2078,2791.4,2791.0,0.00407439]
[1738755007438,1.3506,2791.3,2791.0,0.00407439]
[1738755007827,1.2522,2791.2,2791.0,0.00407439]
[1738755009438,3.2078,2791.7,2791.1,7.77506562]
[1738755009630,3.2078,2791.7,2791.2,3.75814427]
[1738755010131,3.2078,2791.7,2791.3,4.6534596]
[1738755011635,0.00536769,2791.8,2791.4,1.2824]
[1738755011831,0.00536769,2791.8,2791.4,4.4902]
[1738755012037,0.00536769,2791.8,2791.5,4.72664169]
[1738755012435,0.00536769,2791.8,2791.5,7.14138596]
[1738755015335,40.8,2791.7,2791.0,0.00407439]
[1738755015638,3.2078,2791.2,2791.0,0.00407439]
[1738755015839,1.319,2791.1,2791.0,0.00407439]
[1738755019046,6.319,2791.1,2790.2,3.2078]
[1738755019236,3.2078,2790.7,2790.2,3.2078]
[1738755019442,2.41474427,2790.9,2790.1,4.56946942]
[1738755019443,3.2078,2790.4,2790.1,4.56946942]
[1738755019639,3.2078,2790.4,2790.0,1.2464]
[1738755019640,1.3153,2790.3,2790.0,1.2464]
[1738755019939,1.3153,2790.3,2789.8,1.3492]
[1738755020145,1.3153,2790.3,2789.7,3.66114427]
[1738755020340,3.2078,2790.0,2789.6,0.01798]
[1738755020643,3.2078,2789.7,2789.6,0.01798]
[1738755020842,5.62254427,2789.7,2788.8,2.41474427]
[1738755021140,3.2078,2789.3,2788.8,2.41474427]
[1738755022042,1.2396,2789.2,2788.8,2.41474427]
[1738755022237,1.2396,2789.2,2788.7,8.06972175]
[1738755022238,2.41474427,2788.9,2788.7,8.06972175]
[1738755022433,2.41474427,2788.9,2788.5,10.759629]
[1738755022636,5.62254427,2788.6,2788.0,16.1394435]
[1738755022836,5.62254427,2788.6,2788.4,11.41763625]
[1738755023240,3.2078,2788.6,2788.4,11.41763625]
[1738755023442,0.0053775,2788.8,2788.5,4.57946878]
[1738755023737,3.2078,2789.5,2788.5,8.03728854]
[1738755023945,3.2078,2789.5,2788.9,3.2078]
[1738755024241,2.41474427,2790.1,2788.8,2.41474427]
[1738755024242,2.41474427,2790.1,2789.0,1.3121]
[1738755024539,3.2078,2790.5,2789.9,3.2078]
[1738755024746,3.2078,2790.5,2790.1,3.03669594]
[1738755025039,3.2078,2790.5,2790.0,5.93110121]
[1738755025040,3.2131775,2790.5,2790.0,5.93110121]
[1738755025240,3.2131775,2790.5,2790.0,1.3121]
[1738755030245,3.2131775,2790.5,2789.9,0.0053775]
[1738755030246,3.2078,2790.1,2789.9,0.0053775]
[1738755031651,3.03669594,2790.0,2788.9,1.3144]
[1738755031949,3.2078,2789.3,2788.9,1.3144]
[1738755032738,3.2078,2789.3,2788.8,1.2961]
[1738755034253,3.2078,2789.0,2788.3,6.24449594]
[1738755034751,0.0053775,2788.9,2788.4,4.71297072]
[1738755035150,0.0053775,2788.9,2788.6,3.03669594]
[1738755036052,0.0053775,2788.9,2788.3,6.24449594]
[1738755036451,0.0053775,2788.9,2788.4,4.67620773]
[1738755038149,0.0053775,2788.9,2788.6,3.03669594]
[1738755038451,0.0053775,2788.9,2788.6,6.24449594]
[1738755038658,0.0053775,2788.9,2788.7,4.6940364]
[1738755038951,0.0053775,2788.9,2788.3,3.2078]
[1738755039453,0.0053775,2788.9,2788.3,4.74573386]
[1738755040355,0.0053775,2788.9,2788.3,7.7824298]
[1738755041153,3.2078,2788.7,2788.3,4.74573386]
[1738755042553,3.2078,2788.4,2788.2,1.3555]
[1738755043850,3.2078,2788.4,2788.0,3.03669594]
[1738755044052,3.2078,2788.4,2787.9,2.5827]
[1738755044453,3.2078,2788.4,2787.3,1.07648]
[1738755044454,3.2078,2788.1,2787.2,3.03669594]
[1738755044655,3.2078,2787.7,2787.2,3.03669594]
[1738755045256,3.2078,2787.7,2787.3,4.76988005]
[1738755046255,3.2078,2787.7,2787.2,3.03669594]
[1738755046457,3.2078,2787.7,2787.1,3.2078]
[1738755050161,3.2078,2788.0,2787.5,3.03669594]
[1738755050459,3.2078,2788.3,2787.6,4.61156672]
[1738755051156,3.2078,2788.0,2787.2,3.03669594]
[1738755051363,3.2078,2787.7,2787.1,1.2545]
[1738755052063,3.2078,2788.0,2787.2,3.03669594]
[1738755052260,3.2078,2788.0,2787.2,7.60222305]
[1738755052565,3.2078,2788.0,2787.5,3.03669594]
[1738755052766,3.2078,2788.0,2787.6,2.5491]
[1738755052969,3.2078,2788.0,2787.8,3.03669594]
[1738755053171,3.2078,2788.6,2787.8,3.75384594]
[1738755053464,3.2131775,2788.9,2788.5,3.03669594]
[1738755053664,3.2131775,2788.9,2788.6,2.5491]
[1738755053860,3.2131775,2788.9,2788.6,7.1591773]
[1738755054060,3.2131775,2788.9,2788.6,2.5491]
[1738755055060,0.0053775,2788.9,2788.7,4.63343912]
[1738755055662,3.2078,2789.5,2788.8,6.24449594]
[1738755055862,3.2078,2789.5,2789.1,3.03669594]
[1738755056064,3.2078,2789.8,2789.1,3.03669594]
[1738755056758,0.0053775,2789.7,2789.2,0.0053775]
[1738755057265,3.2078,2789.4,2789.2,0.0053775]
[1738755060881,0.0053775,2789.7,2789.2,0.0053775]
[1738755060882,0.0053775,2789.7,2789.3,6.24449594]
[1738755061175,16.50513668,2792.4,2789.8,0.71663]
[1738755061176,3.2258,2791.1,2789.8,0.71663]
[1738755061374,3.2078,2790.7,2790.2,3.2078]
[1738755061569,3.2078,2790.7,2790.0,3.03669594]
[1738755061980,3.2078,2790.4,2789.9,1.2867]
[1738755062179,3.2078,2790.4,2789.5,7.96110104]